[Event "Deloitte NK 2021"]
[Site "Hoogeveen, Netherlands"]
[Date "2021.10.19"]
[Round "5.8"]
[White "Pijpers, Arthur"]
[Black "Schoppen, Casper"]
[Result "0-1"]
[TimeControl "90min/40moves + 30min + 30sec/move"]
[WhiteElo "2474"]
[BlackElo "2496"]

1. e4 {[%clk 01:30:57]} {[%emt 00:00:03]} c5 {[%clk 01:30:53]} {[%emt
00:00:08]} 2. Nf3 {[%clk 01:31:23]} {[%emt 00:00:03]} d6 {[%clk 01:31:18]}
{[%emt 00:00:06]} 3. d4 {[%clk 01:31:49]} {[%emt 00:00:04]} cxd4 {[%clk
01:31:43]} {[%emt 00:00:04]} 4. Nxd4 {[%clk 01:32:16]} {[%emt 00:00:04]} Nf6
{[%clk 01:32:06]} {[%emt 00:00:07]} 5. Nc3 {[%clk 01:32:42]} {[%emt 00:00:04]}
a6 {[%clk 01:32:31]} {[%emt 00:00:05]} 6. Bg5 {[%clk 01:32:58]} {[%emt
00:00:13]} Nbd7 {[%clk 01:32:54]} {[%emt 00:00:08]} 7. Bc4 {[%clk 01:33:06]}
{[%emt 00:00:21]} Qb6 {[%clk 01:33:15]} {[%emt 00:00:10]} 8. Bb3 {[%clk
01:33:30]} {[%emt 00:00:06]} e6 {[%clk 01:33:38]} {[%emt 00:00:06]} 9. Bxf6
{[%clk 01:33:54]} {[%emt 00:00:07]} Nxf6 {[%clk 01:34:02]} {[%emt 00:00:05]} 10.
Qd2 {[%clk 01:34:19]} {[%emt 00:00:05]} Nd7 {[%clk 01:34:22]} {[%emt 00:00:11]}
11. O-O-O {[%clk 01:34:40]} {[%emt 00:00:09]} Nc5 {[%clk 01:34:45]} {[%emt
00:00:07]} 12. f4 {[%clk 01:34:52]} {[%emt 00:00:18]} Bd7 {[%clk 01:35:07]}
{[%emt 00:00:08]} 13. Kb1 {[%clk 01:34:17]} {[%emt 00:01:04]} O-O-O {[%clk
01:34:12]} {[%emt 00:01:26]} 14. f5 {[%clk 01:34:24]} {[%emt 00:00:24]} g6
{[%clk 01:27:44]} {[%emt 00:06:57]} 15. Qg5 {[%clk 01:34:30]} {[%emt 00:00:24]}
Bg7 {[%clk 01:15:26]} {[%emt 00:12:48]} 16. f6 {[%clk 01:34:54]} {[%emt
00:00:06]} Bf8 {[%clk 01:14:21]} {[%emt 00:01:35]} 17. g4 {[%clk 01:13:56]}
{[%emt 00:21:28]} h6 {[%clk 00:52:27]} {[%emt 00:22:23]} 18. Qe3 {[%clk
01:05:49]} {[%emt 00:08:38]} g5 {[%clk 00:49:05]} {[%emt 00:03:52]} 19. Nde2
{[%clk 00:58:20]} {[%emt 00:07:58]} Bc6 {[%clk 00:42:34]} {[%emt 00:07:01]} 20.
Ng3 {[%clk 00:57:02]} {[%emt 00:01:49]} Nd7 {[%clk 00:37:58]} {[%emt 00:05:06]}
21. Qf3 {[%clk 00:56:25]} {[%emt 00:01:06]} Ne5 {[%clk 00:37:23]} {[%emt
00:01:06]} 22. Qe2 {[%clk 00:56:50]} {[%emt 00:00:05]} Qc5 {[%clk 00:32:17]}
{[%emt 00:05:36]} 23. a3 {[%clk 00:51:41]} {[%emt 00:05:40]} Rg8 {[%clk
00:29:12]} {[%emt 00:03:34]} 24. Rhf1 {[%clk 00:50:01]} {[%emt 00:02:09]} Rg6
{[%clk 00:27:36]} {[%emt 00:02:06]} 25. h3 {[%clk 00:45:56]} {[%emt 00:04:36]}
Kb8 {[%clk 00:15:41]} {[%emt 00:12:26]} 26. Nh5 {[%clk 00:41:39]} {[%emt
00:04:46]} Rc8 {[%clk 00:13:07]} {[%emt 00:03:04]} 27. Qd2 {[%clk 00:19:21]}
{[%emt 00:22:48]} Nd7 {[%clk 00:08:38]} {[%emt 00:04:59]} 28. Qd4 {[%clk
00:14:47]} {[%emt 00:05:05]} Qe5 {[%clk 00:07:50]} {[%emt 00:01:18]} 29. Ka2
{[%clk 00:11:43]} {[%emt 00:03:35]} Nc5 {[%clk 00:06:34]} {[%emt 00:01:45]} 30.
Rfe1 {[%clk 00:12:08]} {[%emt 00:00:05]} Nd7 {[%clk 00:05:53]} {[%emt
00:01:10]} 31. Rf1 {[%clk 00:12:33]} {[%emt 00:00:05]} Nc5 {[%clk 00:06:15]}
{[%emt 00:00:08]} 32. Rfe1 {[%clk 00:12:59]} {[%emt 00:00:04]} Qxd4 {[%clk
00:04:25]} {[%emt 00:02:21]} 33. Rxd4 {[%clk 00:13:27]} {[%emt 00:00:02]} Nd7
{[%clk 00:04:39]} {[%emt 00:00:16]} 34. Rf1 {[%clk 00:13:10]} {[%emt 00:00:47]}
b5 {[%clk 00:03:31]} {[%emt 00:01:38]} 35. Nd1 {[%clk 00:09:27]} {[%emt
00:04:13]} Nc5 {[%clk 00:02:51]} {[%emt 00:01:09]} 36. Ng3 {[%clk 00:08:31]}
{[%emt 00:01:26]} Nd7 {[%clk 00:02:57]} {[%emt 00:00:25]} 37. Nh5 {[%clk
00:08:27]} {[%emt 00:00:34]} Nc5 {[%clk 00:03:20]} {[%emt 00:00:07]} 38. Ng3
{[%clk 00:08:55]} {[%emt 00:00:01]} a5 {[%clk 00:02:28]} {[%emt 00:01:23]} 39.
c3 {[%clk 00:08:06]} {[%emt 00:01:19]} Nxb3 {[%clk 00:02:08]} {[%emt 00:00:50]}
40. Kxb3 {[%clk 00:08:34]} {[%emt 00:00:02]} d5 {[%clk 00:02:19]} {[%emt
00:00:19]} 41. e5 {[%clk 00:05:40]} {[%emt 00:03:24]} Bc5 {[%clk 00:29:09]}
{[%emt 00:03:39]} 42. Ne2 {[%clk 00:27:29]} {[%emt 00:08:41]} Bxd4 {[%clk
00:24:30]} {[%emt 00:05:09]} 43. Nxd4 {[%clk 00:27:55]} {[%emt 00:00:04]} Bd7
{[%clk 00:24:25]} {[%emt 00:00:36]} 44. Nf2 {[%clk 00:19:17]} {[%emt 00:09:08]}
Rc4 {[%clk 00:19:06]} {[%emt 00:05:49]} 45. Nd3 {[%clk 00:17:30]} {[%emt
00:02:16]} h5 {[%clk 00:10:50]} {[%emt 00:08:46]} 46. Rg1 {[%clk 00:16:34]}
{[%emt 00:01:27]} hxg4 {[%clk 00:10:46]} {[%emt 00:00:34]} 47. Rxg4 {[%clk
00:16:30]} {[%emt 00:00:34]} Rh6 {[%clk 00:09:28]} {[%emt 00:01:48]} 48. Rg3
{[%clk 00:11:11]} {[%emt 00:05:49]} Rc8 {[%clk 00:05:19]} {[%emt 00:04:39]} 49.
Nf3 {[%clk 00:10:20]} {[%emt 00:01:20]} Rh5 {[%clk 00:04:03]} {[%emt 00:01:46]}
50. Nf2 {[%clk 00:10:29]} {[%emt 00:00:21]} b4 {[%clk 00:01:44]} {[%emt
00:02:49]} 51. axb4 {[%clk 00:09:17]} {[%emt 00:01:42]} axb4 {[%clk 00:02:09]}
{[%emt 00:00:06]} 52. Rg4 {[%clk 00:06:11]} {[%emt 00:03:36]} bxc3 {[%clk
00:02:13]} {[%emt 00:00:25]} 53. bxc3 {[%clk 00:06:40]} {[%emt 00:00:02]} Rc4
{[%clk 00:01:26]} {[%emt 00:01:17]} 54. Nd4 {[%clk 00:05:37]} {[%emt 00:01:33]}
Ba4+ {[%clk 00:01:20]} {[%emt 00:00:36]} 55. Kb2 {[%clk 00:05:54]} {[%emt
00:00:13]} Ka7 {[%clk 00:01:08]} {[%emt 00:00:42]} 56. Rg3 {[%clk 00:04:39]}
{[%emt 00:01:45]} Rh8 {[%clk 00:00:50]} {[%emt 00:00:47]} 57. Kc1 {[%clk
00:05:08]} {[%emt 00:00:02]} Rb8 {[%clk 00:00:51]} {[%emt 00:00:29]} 58. Ng4
{[%clk 00:03:10]} {[%emt 00:02:28]} Be8 {[%clk 00:00:56]} {[%emt 00:00:24]} 59.
Kc2 {[%clk 00:02:28]} {[%emt 00:01:13]} Ba4+ {[%clk 00:01:18]} {[%emt
00:00:08]} 60. Kd3 {[%clk 00:02:29]} {[%emt 00:00:29]} Rb1 {[%clk 00:00:37]}
{[%emt 00:01:11]} 61. Ne3 {[%clk 00:02:46]} {[%emt 00:00:12]} Rc7 {[%clk
00:00:39]} {[%emt 00:00:28]} 62. Rxg5 {[%clk 00:03:06]} {[%emt 00:00:12]} Rc1
{[%clk 00:00:45]} {[%emt 00:00:23]} 63. Ne2 {[%clk 00:03:07]} {[%emt 00:00:29]}
Bb5+ {[%clk 00:01:01]} {[%emt 00:00:14]} 64. Kd2 {[%clk 00:03:36]} Ra1 {[%clk
00:00:52]} {[%emt 00:00:39]} 65. Nd4 {[%clk 00:03:35]} {[%emt 00:00:31]} Ra2+
{[%clk 00:01:20]} {[%emt 00:00:02]} 66. Nec2 {[%clk 00:03:59]} {[%emt
00:00:06]} Ba4 {[%clk 00:01:39]} {[%emt 00:00:11]} 67. Kd3 {[%clk 00:03:49]}
{[%emt 00:00:40]} Bxc2+ {[%clk 00:01:56]} {[%emt 00:00:13]} 68. Nxc2 {[%clk
00:04:18]} {[%emt 00:00:01]} Kb6 {[%clk 00:01:47]} {[%emt 00:00:39]} 69. h4
{[%clk 00:03:00]} {[%emt 00:01:47]} Ra4 {[%clk 00:01:52]} {[%emt 00:00:25]} 70.
Rg1 {[%clk 00:01:17]} {[%emt 00:02:13]} Rxh4 {[%clk 00:01:42]} {[%emt
00:00:40]} 71. Rb1+ {[%clk 00:01:46]} Kc6 {[%clk 00:01:16]} {[%emt 00:00:56]}
72. Rb8 {[%clk 00:02:15]} {[%emt 00:00:02]} Rh3+ {[%clk 00:01:27]} {[%emt
00:00:19]} 73. Ne3 {[%clk 00:02:13]} {[%emt 00:00:32]} Kc5 {[%clk 00:01:03]}
{[%emt 00:00:54]} 74. Kd2 {[%clk 00:01:24]} {[%emt 00:01:18]} Rh4 {[%clk
00:00:45]} {[%emt 00:00:48]} 75. Nc2 {[%clk 00:01:28]} {[%emt 00:00:27]} Rh2+
{[%clk 00:00:36]} {[%emt 00:00:39]} 76. Kd3 {[%clk 00:01:56]} {[%emt 00:00:02]}
Rh3+ {[%clk 00:01:03]} {[%emt 00:00:03]} 77. Kd2 {[%clk 00:01:38]} {[%emt
00:00:48]} Ra7 {[%clk 00:01:05]} {[%emt 00:00:28]} 78. Rc8+ {[%clk 00:01:16]}
{[%emt 00:00:52]} Kb6 {[%clk 00:01:30]} {[%emt 00:00:05]} 79. Rb8+ {[%clk
00:01:21]} {[%emt 00:00:25]} Rb7 {[%clk 00:01:48]} {[%emt 00:00:13]} 80. Rc8
{[%clk 00:00:42]} {[%emt 00:01:08]} Rc7 {[%clk 00:01:36]} {[%emt 00:00:42]} 81.
Rb8+ {[%clk 00:00:57]} {[%emt 00:00:15]} Ka7 {[%clk 00:01:55]} {[%emt
00:00:11]} 82. Rb3 {[%clk 00:01:20]} {[%emt 00:00:08]} Rb7 {[%clk 00:00:56]}
{[%emt 00:01:28]} 83. Nb4 {[%clk 00:01:32]} {[%emt 00:00:18]} Rb6 {[%clk
00:00:58]} {[%emt 00:00:28]} 84. Ra3+ {[%clk 00:01:23]} {[%emt 00:00:38]} Kb7
{[%clk 00:01:23]} {[%emt 00:00:06]} 85. Nd3 {[%clk 00:01:49]} {[%emt 00:00:03]}
Rb1 {[%clk 00:01:25]} {[%emt 00:00:28]} 86. Ra4 {[%clk 00:00:41]} {[%emt
00:01:39]} Rg1 {[%clk 00:01:29]} {[%emt 00:00:26]} 87. Nf2 {[%clk 00:00:36]}
{[%emt 00:00:34]} Rg2 {[%clk 00:01:15]} {[%emt 00:00:44]} 88. Rf4 {[%clk
00:01:04]} {[%emt 00:00:03]} Rh5 {[%clk 00:01:27]} {[%emt 00:00:18]} 89. Kd3
{[%clk 00:01:15]} {[%emt 00:00:20]} Rxe5 {[%clk 00:01:42]} {[%emt 00:00:15]} 90.
Kd4 {[%clk 00:01:37]} {[%emt 00:00:07]} Re1 {[%clk 00:00:52]} {[%emt 00:01:19]}
91. Kc5 {[%clk 00:01:31]} {[%emt 00:00:37]} Kc7 {[%clk 00:00:51]} {[%emt
00:00:31]} 92. Nd3 {[%clk 00:00:52]} {[%emt 00:01:09]} Re4 {[%clk 00:01:03]}
{[%emt 00:00:17]} 93. Rf1 {[%clk 00:00:58]} {[%emt 00:00:25]} Rc2 {[%clk
00:01:09]} {[%emt 00:00:24]} 94. Kb5 {[%clk 00:01:13]} {[%emt 00:00:16]} Rxc3
{[%clk 00:01:26]} {[%emt 00:00:12]} 95. Nc5 {[%clk 00:01:39]} {[%emt 00:00:04]}
Rxc5+ {[%clk 00:01:30]} {[%emt 00:00:25]} 96. Kxc5 {[%clk 00:02:07]} {[%emt
00:00:03]} Rc4+ {[%clk 00:01:53]} {[%emt 00:00:07]} 97. Kb5 {[%clk 00:02:36]}
{[%emt 00:00:01]} Kd6 {[%clk 00:02:16]} {[%emt 00:00:07]} 0-1